bitfinex/quotes_BTCUSD_20250512
["timestamp","ask_amount","ask_price","bid_price","bid_amount"]
[1747029462249,0.04055711,103870.0,103860.0,1.03576403]
[1747029462471,0.24273289,103870.0,103860.0,1.02613634]
[1747029462682,0.24273289,103870.0,103860.0,1.03576403]
[1747029463238,0.05018452,103870.0,103860.0,1.03576403]
[1747029463664,0.03093016,103870.0,103860.0,1.00688068]
[1747029463881,0.03093016,103870.0,103860.0,1.02613634]
[1747029464024,0.04055757,103870.0,103860.0,1.02613634]
[1747029464688,0.24515157,103870.0,103860.0,0.434]
[1747029464855,0.24515157,103870.0,103860.0,0.094]
[1747029466333,0.24515157,103870.0,103860.0,0.004]
[1747029471107,0.24515157,103870.0,103860.0,0.12235389]
[1747029471108,0.01167551,103870.0,103860.0,0.12235389]
[1747029471295,0.01167524,103870.0,103860.0,0.12235389]
[1747029471500,0.01167524,103870.0,103860.0,1.13517419]
[1747029471501,0.00204847,103870.0,103860.0,1.13517419]
[1747029471716,0.01167505,103870.0,103860.0,1.53517419]
[1747029471951,0.00204847,103870.0,103860.0,1.53517419]
[1747029472899,0.01167505,103870.0,103860.0,1.53517419]
[1747029473513,0.01167505,103870.0,103860.0,1.51850119]
[1747029475277,0.02130172,103870.0,103860.0,1.51850119]
[1747029475477,0.01167505,103870.0,103860.0,1.51850119]
[1747029475821,0.01167514,103870.0,103860.0,1.51850119]
[1747029476522,0.00204847,103870.0,103860.0,1.51850119]
[1747029476695,0.01167505,103870.0,103860.0,1.51850119]
[1747029477149,0.02130182,103870.0,103860.0,1.51850119]
[1747029477327,0.02130182,103870.0,103860.0,1.65921377]
[1747029477980,0.02130182,103870.0,103860.0,1.51850119]
[1747029478118,0.02130172,103870.0,103860.0,1.51850119]
[1747029478367,0.03092849,103870.0,103860.0,1.51850119]
[1747029478587,0.04055544,103870.0,103860.0,1.11850119]
[1747029478947,0.03092849,103870.0,103860.0,1.00013419]
[1747029480942,0.00204847,103870.0,103860.0,1.00013419]
[1747029481192,0.01167514,103870.0,103860.0,1.00013419]
[1747029481651,0.02130191,103870.0,103860.0,1.00013419]
[1747029482086,0.01167514,103870.0,103860.0,1.00013419]
[1747029482262,0.01167514,103870.0,103860.0,1.14084677]
[1747029482621,0.02130191,103870.0,103860.0,1.40013419]
[1747029483527,0.01167514,103870.0,103860.0,1.40013419]
[1747029484062,0.00204847,103870.0,103860.0,1.40013419]
[1747029484287,0.01167514,103870.0,103860.0,1.40013419]
[1747029486561,0.02130191,103870.0,103860.0,1.40013419]
[1747029487044,0.00204847,103870.0,103860.0,1.40013419]
[1747029487172,0.01167514,103870.0,103860.0,1.40013419]
[1747029491432,0.00204847,103870.0,103860.0,1.40013419]
[1747029492267,0.00204847,103870.0,103860.0,1.54084677]
[1747029493713,0.00204847,103870.0,103860.0,1.40013419]
[1747029494115,0.02125066,103890.0,103880.0,0.07701109]
[1747029494319,0.02124973,103890.0,103880.0,0.55519141]
[1747029494517,0.0405003,103890.0,103880.0,0.55519141]
[1747029494719,0.03087492,103890.0,103880.0,0.95519141]
[1747029495410,0.01262473,103890.0,103880.0,1.67634241]
[1747029495645,0.02224973,103890.0,103880.0,1.67634241]
[1747029495851,0.22602684,103910.0,103900.0,0.06737237]
[1747029496064,0.22651165,103910.0,103900.0,0.10219507]
[1747029496294,0.21111165,103910.0,103900.0,0.11181943]
[1747029496502,0.22631165,103910.0,103900.0,0.10219507]
[1747029497063,0.21411165,103910.0,103900.0,0.11181943]
[1747029497272,0.01510852,103910.0,103900.0,0.2172979]
[1747029497441,0.02773214,103910.0,103900.0,0.22692198]
[1747029497943,0.02773177,103910.0,103900.0,0.22692143]
[1747029498090,0.02773177,103910.0,103900.0,0.62692143]
[1747029499619,0.03735473,103910.0,103900.0,0.62692143]
[1747029500396,0.03735473,103910.0,103900.0,0.59804919]
[1747029500397,0.23945269,103910.0,103900.0,0.59804919]
[1747029500608,0.26182963,103910.0,103900.0,0.59804919]
[1747029500817,0.26182963,103910.0,103900.0,0.61729762]
[1747029501023,0.26182963,103910.0,103900.0,0.20767345]
[1747029501230,0.24258277,103910.0,103900.0,0.02519825]
[1747029501673,0.02887307,103900.0,103890.0,0.44587952]
[1747029501877,0.03849697,103900.0,103890.0,0.54173317]
[1747029502035,0.0481216,103900.0,103890.0,0.94173317]
[1747029502868,0.0481216,103900.0,103890.0,0.96586089]
[1747029503073,0.0501216,103900.0,103890.0,0.96586089]
[1747029503933,0.0511216,103900.0,103890.0,0.96586089]
[1747029504489,0.0511216,103900.0,103890.0,0.95623598]
[1747029505347,0.23399039,103900.0,103890.0,0.95623598]
[1747029508358,0.26449039,103900.0,103890.0,0.76412772]
[1747029508567,0.24524195,103900.0,103890.0,0.36412772]
[1747029510693,0.35708195,103900.0,103890.0,0.36412772]
[1747029525292,0.35708195,103900.0,103890.0,0.02412772]
[1747029525504,0.20213678,103890.0,103880.0,0.41701094]
[1747029525711,0.21176178,103890.0,103880.0,0.41701094]
[1747029526327,0.21176178,103890.0,103880.0,0.44111251]
[1747029526670,0.20213678,103890.0,103880.0,0.42186]
[1747029526816,0.20213678,103890.0,103880.0,0.43248639]
[1747029527015,0.20213678,103890.0,103880.0,0.44211269]
[1747029528726,0.20213678,103890.0,103880.0,0.45781269]
[1747029531128,0.20213678,103890.0,103880.0,0.43856]
[1747029531295,0.20213678,103890.0,103880.0,0.44818691]
[1747029531777,0.20213678,103890.0,103880.0,0.43856052]
[1747029531978,0.20213678,103890.0,103880.0,0.44818691]
[1747029532178,0.20213678,103890.0,103880.0,0.46448691]
[1747029533483,0.19251131,103890.0,103880.0,0.38080157]
[1747029533662,0.1949178,103890.0,103880.0,0.40045445]
[1747029535511,0.1949178,103890.0,103880.0,0.4736134]
[1747029535905,0.1949178,103890.0,103880.0,0.4832397]
[1747029536134,0.01203131,103890.0,103880.0,0.4832397]
[1747029536258,0.01925029,103890.0,103880.0,0.50249166]
[1747029536466,0.01924992,103890.0,103880.0,0.50249166]
[1747029536666,0.0288752,103890.0,103880.0,0.50249166]
[1747029536903,0.03850058,103890.0,103880.0,0.50249166]
[1747029539008,0.03850058,103890.0,103880.0,0.16249166]
[1747029540398,0.04812605,103890.0,103880.0,0.16249166]
[1747029540570,0.23101254,103890.0,103880.0,0.15286582]
[1747029540780,0.03850123,103890.0,103880.0,0.16249166]
[1747029541192,0.04812679,103890.0,103880.0,0.16249166]
[1747029542472,0.231013,103890.0,103880.0,0.15286582]
[1747029542851,0.231013,103890.0,103880.0,0.16249128]
[1747029544397,0.231013,103890.0,103880.0,0.15286535]
[1747029545030,0.03850169,103890.0,103880.0,0.16249073]
[1747029545381,0.02887613,103890.0,103880.0,0.16249073]
[1747029545741,0.53495906,103910.0,103890.0,0.0312]
[1747029545947,0.53495906,103910.0,103900.0,0.0312]
[1747029546555,0.19249278,103900.0,103890.0,0.20405844]
[1747029546759,0.20452352,103900.0,103890.0,0.32803863]
[1747029546964,0.20211732,103900.0,103890.0,0.32803863]
[1747029547933,0.21374149,103900.0,103890.0,0.32803863]
[1747029548167,0.21374149,103900.0,103890.0,0.21368363]
[1747029548603,0.21374149,103900.0,103890.0,0.22043333]
[1747029549070,0.21474149,103900.0,103890.0,0.22043333]
[1747029549303,0.21474149,103900.0,103890.0,0.23005843]
[1747029549747,0.21474149,103900.0,103890.0,0.63005843]
[1747029549963,0.23399048,103900.0,103890.0,0.77180943]
[1747029552006,0.23399048,103900.0,103890.0,0.74085043]
[1747029552431,0.23399048,103900.0,103890.0,0.75047543]
[1747029552631,0.23399048,103900.0,103890.0,0.35047543]
[1747029553326,0.23399048,103900.0,103890.0,0.63968343]
[1747029554566,0.03187307,103900.0,103890.0,0.63968287]
[1747029554686,0.0342793,103900.0,103890.0,0.63968287]
[1747029555094,0.0342793,103900.0,103890.0,0.63005796]
[1747029555440,0.0342793,103900.0,103890.0,0.63968287]
[1747029555847,0.0342793,103900.0,103890.0,0.77261687]
[1747029556251,0.0342793,103900.0,103890.0,0.37261687]
[1747029556860,0.0342793,103900.0,103890.0,0.77261687]
[1747029557124,0.0342793,103900.0,103890.0,0.63968287]
[1747029557528,0.02465476,103900.0,103890.0,0.77261687]
[1747029557707,0.03427921,103900.0,103890.0,0.77261687]
[1747029559715,0.03427921,103900.0,103890.0,0.37261687]
[1747029560335,0.03427921,103900.0,103890.0,0.77261687]
[1747029561762,0.03427921,103900.0,103890.0,0.76169287]
[1747029563238,0.03427921,103900.0,103890.0,0.36169287]
[1747029563869,0.03427921,103900.0,103890.0,0.76169287]
[1747029565661,0.04390375,103900.0,103890.0,0.76169287]
[1747029565901,0.0150304,103900.0,103890.0,0.76169287]
[1747029566156,0.03187242,103900.0,103890.0,0.76169287]
[1747029566369,0.04390311,103900.0,103890.0,0.76169287]
[1747029566748,0.04390311,103900.0,103890.0,0.35282487]
[1747029567299,0.04390311,103900.0,103890.0,0.75282487]
[1747029570311,0.04390311,103900.0,103890.0,0.34252487]
[1747029570745,0.04390311,103900.0,103890.0,0.74252487]
[1747029571080,0.03427866,103900.0,103890.0,0.74252487]
[1747029573691,0.03427866,103900.0,103890.0,0.34252487]
[1747029574014,0.02224806,103900.0,103890.0,0.34252487]
[1747029574239,0.03187232,103900.0,103890.0,0.74252487]
[1747029575410,0.003,103900.0,103890.0,0.74252487]
[1747029576567,0.001,103900.0,103890.0,0.74252487]
[1747029576773,0.04097844,103910.0,103900.0,0.0866209]
[1747029576999,0.04097844,103910.0,103900.0,0.1172209]
[1747029577257,0.04338451,103910.0,103900.0,0.1172209]
[1747029577633,0.04338451,103910.0,103900.0,0.1239706]
[1747029577778,0.04338451,103910.0,103900.0,0.5239706]
[1747029578027,0.04638451,103910.0,103900.0,0.5239706]
[1747029578343,0.04397844,103910.0,103900.0,0.5239706]
[1747029578553,0.04397844,103910.0,103900.0,0.53359459]
[1747029579304,0.23645269,103910.0,103900.0,0.5239706]
[1747029580998,0.23645269,103910.0,103900.0,0.1239706]
[1747029581322,0.23645269,103910.0,103900.0,0.5239706]
[1747029582345,0.22682963,103910.0,103900.0,0.52397078]
[1747029582552,0.22682963,103910.0,103900.0,0.50837078]
[1747029584354,0.22682963,103910.0,103900.0,0.10837078]
[1747029584777,0.22682963,103910.0,103900.0,0.50837078]
[1747029585389,0.21720629,103910.0,103900.0,0.50837078]
[1747029586686,0.20758277,103910.0,103900.0,0.49874652]
[1747029586886,0.20758277,103910.0,103900.0,0.48374652]
[1747029587702,0.20758277,103910.0,103900.0,0.09924652]
[1747029588332,0.20758277,103910.0,103900.0,0.49924652]
[1747029590637,0.20758277,103910.0,103900.0,0.48374652]
[1747029591286,0.20758277,103910.0,103900.0,0.08374652]
[1747029592003,0.20758277,103910.0,103900.0,0.48374652]
[1747029592848,0.20758277,103910.0,103900.0,0.49984652]
[1747029594792,0.20758277,103910.0,103900.0,0.09984652]
[1747029595173,0.20758277,103910.0,103900.0,0.49984652]
[1747029595374,0.20758277,103910.0,103900.0,0.51554652]
[1747029598373,0.20758277,103910.0,103900.0,0.11554652]
[1747029598901,0.20758277,103910.0,103900.0,0.51554652]
[1747029601688,0.19795906,103910.0,103900.0,0.50592216]
[1747029601907,0.20036514,103910.0,103900.0,0.10592216]
[1747029602532,0.20036514,103910.0,103900.0,0.5155467]
[1747029602723,0.20036514,103910.0,103900.0,0.508797]
[1747029603513,0.19795906,103910.0,103900.0,0.508797]
[1747029603739,0.19795906,103910.0,103900.0,0.51842145]
[1747029605308,0.19795906,103910.0,103900.0,0.11842145]
[1747029605504,0.20036514,103910.0,103900.0,0.11842145]
[1747029605940,0.20036514,103910.0,103900.0,0.51842145]
[1747029606154,0.19795906,103910.0,103900.0,0.51842145]
[1747029606582,0.19795906,103910.0,103900.0,0.52804562]
[1747029606817,0.00548481,103910.0,103900.0,0.97352391]
[1747029607017,0.00548481,103910.0,103900.0,1.63602291]
[1747029607837,0.00548481,103910.0,103900.0,1.77673549]
[1747029607838,0.00348481,103910.0,103900.0,1.77673549]
[1747029608037,0.00248481,103910.0,103900.0,1.77673549]
[1747029608627,0.00248481,103910.0,103900.0,1.63602291]
[1747029610579,0.00248481,103910.0,103900.0,2.04992291]
[1747029613209,0.00248481,103910.0,103900.0,2.16172291]
[1747029618796,0.01210778,103910.0,103900.0,2.16172291]
[1747029618993,0.00248481,103910.0,103900.0,2.16172291]
[1747029619238,0.00248481,103910.0,103900.0,2.16372291]
[1747029619419,0.00248481,103910.0,103900.0,2.16472291]
[1747029620196,0.03135426,103910.0,103900.0,1.64126091]
[1747029621057,0.03135426,103910.0,103900.0,1.63926091]
[1747029621258,0.02173083,103910.0,103900.0,1.63926091]
[1747029621417,0.03135426,103910.0,103900.0,1.22736091]
[1747029622296,0.03135417,103910.0,103900.0,1.22736091]
[1747029623258,0.05060112,103910.0,103900.0,1.22736091]
[1747029624200,0.0409776,103910.0,103900.0,1.22736091]
[1747029624642,0.05060112,103910.0,103900.0,1.22736091]
[1747029626996,0.03135417,103910.0,103900.0,1.22736091]
[1747029635541,0.03135417,103910.0,103900.0,1.21773692]
[1747029635750,0.23345269,103910.0,103900.0,0.92547575]
[1747029635983,0.2293062,103910.0,103900.0,0.343]
[1747029636178,0.2453062,103910.0,103900.0,0.35262463]
[1747029636610,0.2453062,103910.0,103900.0,0.343]
[1747029637398,0.2453062,103910.0,103900.0,0.35262463]
[1747029637676,0.2453062,103910.0,103900.0,0.419997]
[1747029638976,0.23568277,103910.0,103900.0,0.35262463]
[1747029639385,0.23568277,103910.0,103900.0,0.419997]
[1747029639579,0.23568277,103910.0,103900.0,0.42962145]
[1747029640416,0.23568277,103910.0,103900.0,0.419997]
[1747029640572,0.23568277,103910.0,103900.0,0.42743601]
[1747029640779,0.23568277,103910.0,103900.0,0.419997]
[1747029641393,0.23568277,103910.0,103900.0,0.42962145]
[1747029642474,0.23568277,103910.0,103900.0,0.43924581]
[1747029642964,0.23568277,103910.0,103900.0,0.41037246]
[1747029643108,0.23568277,103910.0,103900.0,0.41999682]
[1747029643305,0.23568277,103910.0,103900.0,0.43706009]
[1747029643521,0.23568277,103910.0,103900.0,0.42962108]
[1747029643735,0.23568277,103910.0,103900.0,0.419997]
[1747029643949,0.23568277,103910.0,103900.0,0.42962145]
[1747029644486,0.23568277,103910.0,103900.0,0.08962145]
[1747029645159,0.23568277,103910.0,103900.0,0.06074783]
[1747029645382,0.23568277,103910.0,103900.0,0.079997]
[1747029645597,0.23568277,103910.0,103900.0,0.08962145]
[1747029647255,0.23568277,103910.0,103900.0,0.07037246]
[1747029647461,0.23568277,103910.0,103900.0,0.003]
[1747029647701,0.22605906,103910.0,103900.0,0.003]
[1747029650047,0.22605906,103910.0,103900.0,0.07037246]
[1747029650284,0.19495906,103910.0,103900.0,0.01262463]
[1747029650486,0.1973653,103910.0,103900.0,0.01262463]
[1747029650669,0.1973653,103910.0,103900.0,0.003]
[1747029652974,0.2297653,103910.0,103900.0,0.003]
[1747029653160,0.22735906,103910.0,103900.0,0.003]
[1747029656500,0.21115906,103910.0,103900.0,0.003]
[1747029656705,0.19495906,103910.0,103900.0,0.003]
[1747029656934,0.19736531,103910.0,103900.0,0.003]
[1747029660329,0.19736531,103910.0,103900.0,0.06074783]
[1747029660533,0.19736531,103910.0,103900.0,0.02006364]
[1747029660768,0.19736531,103910.0,103900.0,0.01262463]
[1747029661324,0.19736531,103910.0,103900.0,0.003]
[1747029668423,0.22906531,103910.0,103900.0,0.003]
[1747029668652,0.65740127,103910.0,103900.0,0.003]
[1747029668852,0.84910987,103910.0,103900.0,0.003]
[1747029669086,0.67705421,103910.0,103900.0,0.003]
[1747029669539,0.67705421,103910.0,103900.0,0.001]
[1747029669650,0.22138688,103890.0,103880.0,0.14233897]
[1747029670465,0.22138688,103890.0,103880.0,0.13271285]
[1747029671115,0.21176141,103890.0,103880.0,0.13271285]
[1747029671559,0.21176141,103890.0,103880.0,0.13571285]
[1747029671760,0.22138688,103890.0,103880.0,0.13571285]
[1747029671964,0.21176197,103890.0,103880.0,0.12608664]
[1747029672165,0.21176197,103890.0,103880.0,0.13008664]
[1747029672566,0.21176197,103890.0,103880.0,0.53008664]
[1747029674159,0.20213678,103890.0,103880.0,0.43110157]
[1747029674387,0.20213678,103890.0,103880.0,0.45035445]
[1747029675131,0.19251131,103890.0,103880.0,0.43110157]
[1747029675342,0.19491789,103890.0,103880.0,0.43110157]
[1747029675551,0.19491789,103890.0,103880.0,0.03110157]
[1747029675766,0.22731789,103890.0,103880.0,0.03110157]
[1747029676068,0.22491131,103890.0,103880.0,0.03110157]
[1747029676305,0.22491131,103890.0,103880.0,0.02410157]
[1747029676707,0.20215614,103880.0,103870.0,0.1172457]
[1747029676915,0.20215614,103880.0,103870.0,0.2131]
[1747029677120,0.20215614,103880.0,103870.0,0.20347286]
[1747029677296,0.20215614,103880.0,103870.0,0.52421831]
[1747029677503,0.2001756,103870.0,103860.0,0.45062638]
[1747029677722,0.2001756,103870.0,103860.0,0.94223787]
[1747029677723,0.20158247,103870.0,103860.0,0.94223787]
[1747029678049,0.20158247,103870.0,103860.0,0.56573709]
[1747029678259,0.19495524,103870.0,103860.0,0.57536506]
[1747029678464,0.19095524,103870.0,103860.0,0.57536506]
[1747029678677,0.19095524,103870.0,103860.0,0.58280407]
[1747029678846,0.18495524,103870.0,103860.0,0.57536506]
[1747029679051,0.18495524,103870.0,103860.0,0.58036506]
[1747029679259,0.18495524,103870.0,103860.0,0.59774599]
[1747029679439,0.18495524,103870.0,103860.0,0.60174599]
[1747029679823,0.19458247,103870.0,103860.0,0.21851765]
[1747029680435,0.20420951,103870.0,103860.0,0.22814599]
[1747029680648,0.21383692,103870.0,103860.0,0.95295053]
[1747029680846,0.21143005,103870.0,103860.0,0.87436653]
[1747029681075,0.21143005,103870.0,103860.0,0.87536653]
[1747029681280,0.02888168,103870.0,103860.0,0.87536606]
[1747029681493,0.03128863,103870.0,103860.0,0.87536606]
[1747029681709,0.24397048,103890.0,103880.0,0.08663795]
[1747029681954,0.13261048,103890.0,103880.0,0.42086581]
[1747029682126,0.02365706,103890.0,103880.0,0.10588981]
[1747029682336,0.02125048,103890.0,103880.0,0.46953681]
[1747029682554,0.01162473,103890.0,103880.0,0.90539111]
[1747029682761,0.02124992,103890.0,103880.0,0.90539111]
[1747029682966,0.0308753,103890.0,103880.0,0.93739111]
[1747029683131,0.02124992,103890.0,103880.0,0.93739111]
[1747029683684,0.02124982,103890.0,103880.0,0.93739111]
[1747029684047,0.0308751,103890.0,103880.0,1.33739111]
[1747029684216,0.02124982,103890.0,103880.0,1.33739111]
[1747029684430,0.002,103890.0,103880.0,1.33739111]
[1747029684642,0.005,103890.0,103880.0,1.33739111]
[1747029684839,0.007,103890.0,103880.0,1.33739111]
[1747029685037,0.007,103890.0,103880.0,1.13426515]
[1747029685239,0.007,103890.0,103880.0,1.22090245]
[1747029685459,0.007,103890.0,103880.0,2.20622462]
[1747029685701,0.007,103890.0,103880.0,2.21585111]
[1747029689758,0.01662482,103890.0,103880.0,2.21585111]
[1747029690717,0.007,103890.0,103880.0,2.21585111]
[1747029692449,0.01662473,103890.0,103880.0,2.21585111]
[1747029692764,0.007,103890.0,103880.0,2.21585111]
[1747029692939,0.01662473,103890.0,103880.0,2.21585111]
[1747029693145,0.007,103890.0,103880.0,2.21585111]
[1747029693787,0.01662482,103890.0,103880.0,2.21585111]
[1747029694201,0.007,103890.0,103880.0,2.21585111]
[1747029694613,0.002,103910.0,103900.0,0.08662062]
[1747029694827,0.00248481,103910.0,103900.0,0.55427492]
[1747029695035,0.01210768,103910.0,103900.0,0.55427492]
[1747029695241,0.02173074,103910.0,103900.0,0.55427492]
[1747029695468,0.03135389,103910.0,103900.0,0.95427492]
[1747029695933,0.00248481,103910.0,103900.0,0.95427492]
[1747029696099,0.00248481,103910.0,103900.0,2.40283292]
[1747029696310,0.01210778,103910.0,103900.0,2.40283292]
[1747029696538,0.01210778,103910.0,103900.0,2.26082192]
[1747029696761,0.02373084,103910.0,103900.0,2.26082192]
[1747029696939,0.02573084,103910.0,103900.0,2.26082192]
[1747029697145,0.01610778,103910.0,103900.0,2.26082192]
[1747029697516,0.00648481,103910.0,103900.0,2.26082192]
[1747029697873,0.01610768,103910.0,103900.0,2.26082192]
[1747029698300,0.01610768,103910.0,103900.0,1.81800592]
[1747029699241,0.0353538,103910.0,103900.0,1.81800592]
[1747029699450,0.02573065,103910.0,103900.0,1.45953892]
[1747029699656,0.0353538,103910.0,103900.0,1.45953892]
[1747029699871,0.04497704,103910.0,103900.0,1.45953892]
[1747029700083,0.0353538,103910.0,103900.0,1.21589792]
[1747029700279,0.0353538,103910.0,103900.0,1.18723792]
[1747029700668,0.04497704,103910.0,103900.0,1.18723792]
[1747029700869,0.0353538,103910.0,103900.0,1.18723792]
[1747029701077,0.0353538,103910.0,103900.0,1.13045392]
[1747029701604,0.0353538,103910.0,103900.0,1.14635392]
[1747029702265,0.0353538,103910.0,103900.0,1.16205392]
[1747029702994,0.04497704,103910.0,103900.0,1.16205392]
[1747029705065,0.05460047,103910.0,103900.0,1.16205392]
[1747029705270,0.05460038,103910.0,103900.0,1.16205392]
[1747029706119,0.04497704,103910.0,103900.0,1.16205392]
[1747029706315,0.02573065,103910.0,103900.0,1.16205392]
[1747029706734,0.02573074,103910.0,103900.0,1.16205392]
[1747029707587,0.02573065,103910.0,103900.0,1.16205392]
[1747029707836,0.0353538,103910.0,103900.0,1.16205392]
[1747029708262,0.02573065,103910.0,103900.0,1.16205392]
[1747029709106,0.03535371,103910.0,103900.0,1.16205392]
[1747029709921,0.04497686,103910.0,103900.0,1.16205392]
[1747029710314,0.0546001,103910.0,103900.0,1.16205392]
[1747029710557,0.05460057,103910.0,103900.0,1.13045392]
[1747029711036,0.04497797,103910.0,103900.0,1.06777009]
[1747029711266,0.03535454,103910.0,103900.0,1.06777009]
[1747029711584,0.04497797,103910.0,103900.0,1.06777009]
[1747029711836,0.05460149,103910.0,103900.0,1.06777009]
[1747029712043,0.04497797,103910.0,103900.0,1.06777009]
[1747029712219,0.05460149,103910.0,103900.0,1.06777009]
[1747029714017,0.05460205,103910.0,103900.0,1.06777009]
[1747029714470,0.04497834,103910.0,103900.0,1.06777009]
[1747029716146,0.05460196,103910.0,103900.0,1.06777009]
[1747029716697,0.05460196,103910.0,103900.0,1.04121209]
[1747029717194,0.04497872,103910.0,103900.0,1.04121209]
[1747029717400,0.24980639,103910.0,103900.0,0.4358543]
[1747029718502,0.24018277,103910.0,103900.0,0.50322667]
[1747029718871,0.23055906,103910.0,103900.0,0.4358543]
[1747029719077,0.23055906,103910.0,103900.0,0.44547893]
[1747029720813,0.23055906,103910.0,103900.0,0.51285121]
[1747029721814,0.23055906,103910.0,103900.0,0.34]
[1747029722449,0.24396179,103890.0,103880.0,1.1539]
[1747029722666,0.23475614,103880.0,103870.0,0.14071258]
[1747029722893,0.23475614,103880.0,103870.0,0.57656688]
[1747029723146,0.24438235,103880.0,103870.0,0.65358585]
[1747029723372,0.01925158,103880.0,103870.0,0.77528499]
[1747029723548,0.04813029,103880.0,103870.0,0.77528499]
[1747029723754,0.04713029,103880.0,103870.0,0.77528499]
[1747029723958,0.04713029,103880.0,103870.0,0.76208499]
[1747029724172,0.04953696,103880.0,103870.0,0.76208499]
[1747029724508,0.04953696,103880.0,103870.0,0.76508499]
[1747029724509,0.04713029,103880.0,103870.0,0.76508499]
[1747029725325,0.0375039,103880.0,103870.0,0.76508499]
[1747029726372,0.03750381,103880.0,103870.0,0.78048499]
[1747029726574,0.00962565,103880.0,103870.0,1.19258499]
[1747029726777,0.0288777,103880.0,103870.0,1.19058499]
[1747029726981,0.02125158,103880.0,103870.0,1.19058499]
[1747029727183,0.002,103880.0,103870.0,1.19058499]
[1747029727846,0.01162565,103880.0,103870.0,1.19058499]
[1747029727982,0.002,103880.0,103870.0,1.19058499]
[1747029728176,0.01162565,103880.0,103870.0,1.19058499]
[1747029728630,0.002,103880.0,103870.0,1.19058499]
[1747029729379,0.01162565,103880.0,103870.0,1.19058499]
[1747029729591,0.002,103880.0,103870.0,1.19058499]
[1747029731069,0.01162565,103880.0,103870.0,1.19058499]
[1747029731268,0.04050391,103880.0,103870.0,0.53212699]
[1747029731476,0.06277761,103880.0,103870.0,0.64975199]
[1747029732723,0.03087761,103880.0,103870.0,0.64975199]
[1747029734147,0.25731546,103880.0,103870.0,0.34]
[1747029734355,0.25490866,103880.0,103870.0,0.41701915]
[1747029734581,0.25490866,103880.0,103870.0,0.42664629]
[1747029734811,0.25490866,103880.0,103870.0,0.40739192]
[1747029735009,0.2021756,103870.0,103860.0,0.01938093]
[1747029735217,0.2336756,103870.0,103860.0,0.01938093]
[1747029735859,0.24330274,103870.0,103860.0,0.077151]
[1747029736056,0.24330274,103870.0,103860.0,0.418151]
[1747029736725,0.2336756,103870.0,103860.0,0.36138093]
[1747029736938,0.2336756,103870.0,103860.0,0.02138093]
[1747029738656,0.02888336,103860.0,103850.0,0.39777502]
[1747029738856,0.0288841,103860.0,103850.0,0.91298033]
[1747029739066,0.01925575,103860.0,103850.0,0.93223831]
[1747029739464,0.02888391,103860.0,103850.0,0.94186721]
[1747029739873,0.03851188,103860.0,103850.0,0.93223868]
[1747029740004,0.03851188,103860.0,103850.0,0.9418673]
[1747029740208,0.03851188,103860.0,103850.0,0.9438673]
[1747029740407,0.03851188,103860.0,103850.0,0.9458673]
[1747029740681,0.01925566,103860.0,103850.0,0.9458673]
[1747029740888,0.02888382,103860.0,103850.0,0.96181228]
[1747029741098,0.01925566,103860.0,103850.0,0.96181228]
[1747029741308,0.02888382,103860.0,103850.0,0.96181228]
[1747029743534,0.03851207,103860.0,103850.0,0.96181228]
[1747029745083,0.02888438,103860.0,103850.0,0.96181228]
[1747029745230,0.02888382,103860.0,103850.0,0.96181228]
[1747029746090,0.24392332,103860.0,103850.0,0.36003838]
[1747029746270,0.46740332,103860.0,103850.0,0.0040934]
[1747029746446,0.57779847,103860.0,103850.0,0.0040934]
[1747029747205,0.57779847,103860.0,103850.0,9.34e-05]
[1747029747412,0.57879847,103860.0,103850.0,9.34e-05]
[1747029747622,0.57779847,103860.0,103850.0,9.34e-05]
[1747029747967,0.58079847,103860.0,103850.0,9.34e-05]
[1747029748394,0.58179847,103860.0,103850.0,9.34e-05]
[1747029748815,0.58079847,103860.0,103850.0,0.00407497]
[1747029749455,0.58379847,103860.0,103850.0,0.00407497]
[1747029759360,0.80624688,103860.0,103850.0,0.00407497]
[1747029759609,0.59927757,103860.0,103850.0,0.00407497]
[1747029759817,2.11817439,103860.0,103850.0,0.00407497]
[1747029760059,0.59820459,103840.0,103830.0,0.0067284]
[1747029760288,0.59820459,103840.0,103830.0,4.847e-05]
[1747029760289,0.870653,103840.0,103830.0,4.847e-05]
[1747029760469,0.920653,103840.0,103830.0,4.847e-05]
[1747029760684,1.02765783,103840.0,103830.0,4.847e-05]
[1747029760896,1.72165783,103840.0,103830.0,4.847e-05]
[1747029761338,1.67165783,103840.0,103830.0,4.847e-05]
[1747029761527,1.67521235,103840.0,103830.0,4.847e-05]
[1747029761730,0.26679434,103830.0,103820.0,0.002]
[1747029761950,1.04638864,103830.0,103820.0,0.00204839]
[1747029762563,0.99638864,103830.0,103820.0,0.00204839]
[1747029763509,0.99838864,103830.0,103820.0,0.00204839]
[1747029765525,1.00138864,103830.0,103820.0,0.00204839]
[1747029768976,0.76534864,103830.0,103820.0,0.00204839]
[1747029769158,1.02470864,103830.0,103820.0,0.00204839]
[1747029769972,0.76534864,103830.0,103820.0,0.00204839]
[1747029770175,1.00912864,103830.0,103820.0,0.00204839]
[1747029770745,0.99292864,103830.0,103820.0,0.00204839]
[1747029771622,1.02392864,103830.0,103820.0,0.00204839]
[1747029772134,1.24637705,103830.0,103820.0,0.00204839]
[1747029773038,1.02392864,103830.0,103820.0,0.00204839]
[1747029773240,1.24637705,103830.0,103820.0,0.00204839]
[1747029773588,1.02392864,103830.0,103820.0,0.00204839]
[1747029774033,1.02400864,103830.0,103820.0,0.00204839]
[1747029775907,1.00880864,103830.0,103820.0,0.00204839]
[1747029776316,1.02480864,103830.0,103820.0,0.00204839]
[1747029776552,1.00880864,103830.0,103820.0,0.00204839]
[1747029776734,0.99300864,103830.0,103820.0,0.00204839]
[1747029777735,0.73344864,103830.0,103820.0,0.00204839]
[1747029777940,0.99260864,103830.0,103820.0,0.01834839]
[1747029778136,0.88221349,103830.0,103820.0,0.01834839]
[1747029779152,0.88221349,103830.0,103820.0,0.00204839]
[1747029779939,0.88221349,103830.0,103820.0,0.01824839]
[1747029781142,0.75217349,103830.0,103820.0,0.03394839]
[1747029786961,0.75217349,103830.0,103820.0,0.01824839]
[1747029787313,0.75217349,103830.0,103820.0,0.00204839]
[1747029788914,0.75217349,103830.0,103820.0,0.01804839]
[1747029792788,0.33637349,103830.0,103820.0,0.01804839]
[1747029793491,0.33637349,103830.0,103820.0,0.03424839]
[1747029793696,0.33637349,103830.0,103820.0,0.00204839]
[1747029794327,0.47786864,103830.0,103820.0,0.00204839]
[1747029794514,0.70031705,103830.0,103820.0,0.00204839]
[1747029794730,0.47786864,103830.0,103820.0,0.00204839]
[1747029798643,0.70031705,103830.0,103820.0,0.00204839]
[1747029799316,0.47786864,103830.0,103820.0,0.00204839]
[1747029799935,0.60782864,103830.0,103820.0,0.00204839]
[1747029804652,0.83027705,103830.0,103820.0,0.00204839]
[1747029805078,1.17027705,103830.0,103820.0,0.00204839]
[1747029805531,0.94782864,103830.0,103820.0,0.00204839]
[1747029805739,1.17027705,103830.0,103820.0,0.00204839]
[1747029805945,0.94782864,103830.0,103820.0,0.00204839]
[1747029808841,0.94690864,103830.0,103820.0,0.00204839]